bitfinex-derivatives/quotes_ETHF0:USTF0_20260119
["timestamp","ask_amount","ask_price","bid_price","bid_amount"]
[1768781303429,0.1508201,3254.9,3251.8,2.95116855]
[1768781303632,0.1508201,3254.1,3251.8,0.79716855]
[1768781303936,0.1508201,3254.1,3251.8,0.79956554]
[1768781303937,0.1508201,3254.0,3251.8,0.79956554]
[1768781304226,6.68e-06,3253.3,3252.6,0.00461297]
[1768781304417,0.1508201,3255.8,3252.6,0.14642937]
[1768781304614,0.1508201,3255.8,3253.6,0.15372]
[1768781305222,0.15448553,3255.8,3253.1,0.15375]
[1768781305621,0.15448553,3255.8,3254.1,0.00461297]
[1768781305622,0.1508201,3255.7,3254.1,0.00461297]
[1768781305816,0.1508201,3255.6,3252.2,0.15379]
[1768781306116,0.1508201,3255.3,3252.6,0.15377]
[1768781306323,0.1508201,3255.3,3252.9,0.15376]
[1768781306623,0.1508201,3254.9,3252.1,0.15379]
[1768781306824,3.2358201,3254.8,3252.1,0.00367476]
[1768781307027,1.53779201,3254.1,3252.1,0.00367476]
[1768781307324,0.15543307,3253.8,3252.1,0.00367476]
[1768781307529,1.53779201,3253.4,3252.1,0.00367476]
[1768781307724,1.53779201,3253.2,3252.1,0.00367476]
[1768781308030,1.53779201,3252.7,3251.8,0.79716855]
[1768781308324,1.53779201,3252.6,3251.1,0.1418164]
[1768781308629,3.085,3254.7,3251.1,0.1418164]
[1768781308630,0.1508201,3255.6,3253.1,0.15375]
[1768781309015,0.1508201,3255.5,3253.1,0.15375]
[1768781309419,0.15472236,3255.5,3253.2,0.15374]
[1768781309829,0.00461297,3254.7,3254.0,0.00461297]
[1768781310825,1.06003201,3254.6,3254.0,0.00461297]
[1768781311029,1.06003201,3254.6,3253.1,0.00395958]
[1768781311227,0.00461297,3254.7,3253.1,0.00395958]
[1768781311530,1.06003201,3254.4,3253.1,0.00395958]
[1768781311935,0.00461297,3254.7,3253.1,0.00395958]
[1768781312429,0.00461297,3254.7,3253.4,0.00461297]
[1768781313030,1.06003201,3254.1,3251.2,0.1418164]
[1768781313330,0.1508201,3254.2,3251.2,0.1418164]
[1768781313831,0.1508201,3254.2,3251.6,0.15382]
[1768781314032,0.1508201,3254.2,3251.6,0.15619293]
[1768781314330,0.00461297,3253.2,3252.6,0.00461297]
[1768781314527,0.1508201,3256.4,3252.6,0.14436135]
[1768781314725,0.1508201,3256.1,3252.8,0.2955764]
[1768781314931,0.1508201,3256.0,3252.8,0.2955764]
[1768781315430,0.1508201,3255.9,3252.8,0.15376]
[1768781315633,0.00461297,3254.7,3252.1,0.15379]
[1768781315926,0.00461297,3254.7,3252.2,0.15379]
[1768781316132,0.00461297,3254.7,3252.0,0.1418164]
[1768781316427,0.00461297,3254.7,3252.7,0.15377]
[1768781317019,0.00461297,3254.7,3253.4,0.00461297]
[1768781317227,0.0033726,3255.9,3253.5,0.15373]
[1768781317428,0.1541927,3255.9,3253.4,2.15661297]
[1768781317624,0.1541927,3255.9,3253.4,0.00461297]
[1768781318127,0.15274157,3255.8,3253.4,0.00461297]
[1768781318523,0.00461297,3254.9,3253.4,0.00461297]
[1768781318727,0.15735454,3254.9,3253.4,0.00461297]
[1768781318927,0.15274157,3254.3,3252.4,2.152]
[1768781319122,0.15274157,3254.3,3251.5,0.15382]
[1768781319831,0.15274157,3254.3,3251.6,0.15619293]
[1768781320033,0.15274157,3254.3,3252.6,0.00461297]
[1768781320338,0.00461297,3254.9,3251.6,0.00237293]
[1768781320339,0.15274157,3253.6,3251.6,0.00237293]
[1768781320636,0.15274157,3253.2,3251.6,0.00237293]
[1768781320844,0.15274157,3252.0,3249.8,2.152]
[1768781321231,0.15274157,3252.9,3249.9,0.14575096]
[1768781321535,0.15274157,3252.9,3250.6,0.00461297]
[1768781321735,0.15274157,3252.9,3250.6,0.00738245]
[1768781322531,0.15570654,3253.6,3250.8,0.15386]
[1768781322730,0.15570654,3253.6,3251.1,0.15384]
[1768781322933,0.15570654,3253.6,3250.7,1.99770696]
[1768781323133,0.15570654,3253.6,3250.7,2.15156696]
[1768781323438,0.15570654,3253.6,3250.6,0.15313341]
[1768781323439,0.15274157,3254.5,3252.1,1.99770696]
[1768781323941,0.00461297,3253.6,3253.0,0.00461297]
[1768781324626,0.00713493,3253.6,3253.0,0.00834895]
[1768781325635,0.78513412,3255.1,3253.0,2.00605591]
[1768781325835,0.15274157,3255.2,3253.0,2.00605591]
[1768781326036,0.15274157,3255.5,3253.0,2.00605591]
[1768781326233,0.15274157,3255.3,3253.0,0.00834895]
[1768781326854,0.15557643,3255.3,3253.0,0.00834895]
[1768781327834,0.00283486,3255.3,3253.6,1.99770696]
[1768781328031,0.00283486,3255.3,3253.6,2.15142696]
[1768781328237,0.78513412,3256.8,3254.3,1.99770696]
[1768781328438,0.15274157,3256.8,3254.3,1.99770696]
[1768781328636,0.78513412,3257.3,3255.1,1.99770696]
[1768781328838,1.19947647,3257.5,3255.1,1.99770696]
[1768781328839,0.15274157,3257.5,3255.1,1.99770696]
[1768781329034,0.15274157,3258.3,3255.2,0.15365]
[1768781329342,0.00308051,3257.4,3255.9,0.00461297]
[1768781329547,0.15274157,3259.1,3256.5,1.99770696]
[1768781329736,0.15274157,3258.9,3256.5,1.99770696]
[1768781329937,0.15274157,3258.3,3255.9,0.00461297]
[1768781330231,0.30627157,3257.7,3255.9,0.00461297]
[1768781330437,0.15643576,3257.7,3255.9,0.00745965]
[1768781330747,0.00204252,3257.4,3255.9,0.00745965]
[1768781331441,0.00369419,3257.7,3256.0,1.99770696]
[1768781332344,0.00369419,3257.7,3255.9,0.00745965]
[1768781333254,0.29036583,3257.7,3255.9,0.00745965]
[1768781333442,0.15355,3257.4,3255.9,0.00745965]
[1768781333640,0.28670164,3257.1,3255.9,0.00745965]
[1768781334040,0.13314164,3257.0,3254.5,0.14240076]
[1768781334240,0.13314164,3257.0,3254.0,0.15371]
[1768781334442,0.13314164,3257.0,3254.3,2.14010772]
[1768781335146,0.13314164,3257.0,3254.3,2.14232324]
[1768781335449,0.00369419,3257.7,3255.3,0.00460532]
[1768781335743,0.00369419,3257.7,3255.7,1.99770696]
[1768781335943,0.00369419,3257.7,3255.8,0.14240076]
[1768781336345,0.00369419,3257.7,3256.1,0.14240076]
[1768781338049,0.00369419,3257.7,3255.7,1.99770696]
[1768781338252,0.00369419,3257.7,3255.3,0.14700608]
[1768781338752,0.13314164,3257.5,3255.3,0.00460532]
[1768781339652,0.15357,3257.0,3255.3,0.00460532]
[1768781339856,0.28671164,3257.0,3255.3,0.00460532]
[1768781340059,0.13314164,3257.0,3255.3,0.00460532]
[1768781340251,0.1536,3256.3,3254.3,0.00221552]
[1768781340449,0.13314164,3257.0,3254.3,0.00221552]
[1768781340650,0.13683583,3257.7,3254.7,0.14240076]
[1768781340953,0.13314164,3257.2,3254.3,0.00221552]
[1768781341159,0.28672164,3256.7,3254.3,0.00221552]
[1768781341453,0.00460532,3255.8,3255.2,0.00460532]
[1768781341953,0.00460532,3255.8,3254.3,0.00221552]
[1768781342151,0.28679164,3255.1,3252.5,0.94814794]
[1768781342346,0.13314164,3255.0,3252.5,0.94814794]
[1768781342659,0.15368,3254.6,3252.5,0.80574718]
[1768781342956,0.15369,3254.4,3252.5,0.80574718]
[1768781343143,0.28956779,3254.4,3252.5,0.80945078]
[1768781343349,0.13314164,3254.2,3252.5,0.80945078]
[1768781343550,0.13314164,3254.1,3252.5,0.0037036]
[1768781343857,0.13314164,3253.6,3250.9,3.09452268]
[1768781344058,0.28687164,3253.5,3250.9,3.09452268]
[1768781344254,0.28687164,3253.4,3250.9,2.95212192]
[1768781344446,0.15374,3253.3,3251.9,0.00460532]
[1768781344654,0.00460532,3252.5,3251.9,0.00460532]
[1768781344959,0.13314164,3253.4,3251.9,0.00711373]
[1768781345554,0.13314164,3254.3,3251.9,0.00711373]
[1768781345950,0.00273615,3254.4,3252.4,1.99770696]
[1768781346258,0.00273615,3254.4,3253.1,1.99770696]
[1768781346652,0.00273615,3254.4,3251.9,0.00711373]
[1768781347057,0.28956779,3254.4,3251.9,0.00711373]
[1768781347255,0.13314164,3254.2,3251.9,0.00711373]
[1768781347450,0.13314164,3253.8,3251.9,0.00711373]
[1768781347657,0.00273615,3254.4,3251.9,0.00711373]
[1768781347658,0.28687164,3253.6,3251.9,0.00711373]
[1768781347859,0.13314164,3253.5,3251.9,0.00711373]
[1768781348068,0.15376,3252.9,3251.2,2.459]
[1768781348262,0.28690164,3252.9,3250.1,0.14240076]
[1768781348557,0.13314164,3252.8,3250.1,0.14240076]
[1768781348762,0.00460532,3253.1,3250.4,1.99770696]
[1768781348961,0.00460532,3253.1,3251.1,1.99770696]
[1768781349161,0.00460532,3253.1,3251.1,0.0034331]
[1768781349358,0.13774696,3253.1,3251.8,0.00461248]
[1768781349753,0.15376,3252.8,3251.1,0.0034331]
[1768781350061,0.13314164,3252.4,3251.1,0.0034331]
[1768781350363,0.28692164,3252.4,3251.1,0.0034331]
[1768781350747,0.28692164,3252.4,3250.3,2.459]
[1768781350955,0.00460532,3253.1,3249.1,0.14240076]
[1768781350956,0.13314164,3251.9,3249.1,0.14240076]
[1768781351257,0.13314164,3251.9,3249.4,0.15392]
[1768781351464,0.28695164,3251.8,3249.1,0.14240076]
[1768781351659,0.13314164,3251.6,3249.1,0.14240076]
[1768781351864,0.13314164,3251.5,3249.1,0.0038562]
[1768781352166,0.00461248,3250.6,3249.1,0.0038562]
[1768781352368,0.00461248,3250.6,3250.0,0.00461248]
[1768781352659,0.00461248,3250.6,3249.1,0.0038562]
[1768781352852,0.00461248,3250.6,3249.1,0.1577862]
[1768781353054,0.00461248,3250.6,3249.1,0.0038562]
[1768781354066,0.00461248,3250.6,3249.5,0.00461248]
[1768781355355,0.00461248,3250.6,3249.1,0.0038562]
[1768781355757,0.13314164,3250.4,3249.1,0.0038562]
[1768781355961,0.28702164,3250.4,3247.7,2.46]
[1768781356152,0.13314164,3250.4,3248.0,0.15399]
[1768781356358,0.13314164,3250.4,3248.0,0.29639076]
[1768781356677,0.13314164,3250.4,3248.9,0.00305778]
[1768781356968,0.13314164,3250.3,3248.9,0.00568227]
[1768781358275,0.13314164,3249.6,3247.7,2.46]
[1768781358462,0.28706164,3249.6,3247.7,2.46]
[1768781358663,0.13314164,3249.6,3247.7,2.46]
[1768781359166,0.00461248,3249.0,3247.7,2.46282781]
[1768781359464,0.00816144,3249.0,3247.7,2.46282781]
[1768781359664,0.00816144,3249.0,3247.7,0.00282781]
[1768781359864,0.14130308,3249.0,3247.7,0.00282781]
[1768781360070,0.28709164,3248.8,3246.0,0.15408]
[1768781360258,0.15396,3248.7,3246.0,0.29648076]
[1768781360457,0.15396,3248.6,3246.0,0.29648076]
[1768781360654,0.00816144,3249.0,3246.1,0.14240076]
[1768781360865,0.00816144,3249.0,3246.4,0.14240076]
[1768781361071,0.00816144,3249.0,3246.5,0.14240076]
[1768781361765,0.00816144,3249.0,3246.8,0.14240076]
[1768781361957,0.00816144,3249.0,3247.0,0.29644076]
[1768781362160,0.00816144,3249.0,3247.1,0.14240076]
[1768781362361,0.00816144,3249.0,3246.5,1.99770696]
[1768781362564,0.00816144,3249.0,3247.2,0.12878887]
[1768781362864,0.00816144,3249.0,3246.5,2.12649583]
[1768781363059,0.00816144,3249.0,3246.6,0.28283887]
[1768781363264,0.00816144,3249.0,3246.7,0.12878887]
[1768781363961,0.28320014,3248.9,3246.4,0.0025027]
[1768781364158,0.28320014,3248.9,3246.4,0.13129157]
[1768781364471,0.12925014,3248.9,3246.4,0.13129157]
[1768781364670,0.12925014,3248.9,3246.6,0.12878887]
[1768781365068,0.12925014,3248.9,3246.4,0.0025027]
[1768781366267,0.28321014,3248.6,3246.4,0.0025027]
[1768781366466,0.12925014,3248.6,3246.4,0.0025027]
[1768781366673,0.00816144,3249.0,3246.4,0.13129157]
[1768781366974,0.13741158,3249.0,3246.4,0.28535157]
[1768781367674,0.00816144,3249.0,3246.8,0.28282887]
[1768781368670,0.00816144,3249.0,3246.9,0.12878887]
[1768781369062,0.00816144,3249.0,3246.4,0.0025027]
[1768781369262,0.16210144,3249.0,3246.4,0.0025027]
[1768781369771,0.15395,3248.9,3246.4,0.0025027]
[1768781369972,0.15398,3248.3,3246.4,0.0025027]
[1768781370474,0.15398,3248.2,3246.4,0.0025027]
[1768781370876,0.0004973,3246.2,3245.8,0.12878887]
[1768781371070,0.0004973,3246.2,3245.1,0.12878887]
[1768781371463,0.12925014,3247.8,3245.4,0.13495187]
[1768781371677,0.12925014,3248.4,3245.6,0.12878887]
[1768781371878,0.12925014,3248.3,3245.6,0.13169745]
[1768781372378,0.12925014,3248.1,3245.6,0.13169745]
[1768781372678,0.00461972,3247.2,3245.6,0.13169745]
[1768781373373,0.00461972,3247.2,3246.1,0.00461972]
[1768781373577,0.00351269,3248.4,3246.1,0.00461972]
[1768781373970,0.12925014,3248.1,3246.1,0.00461972]
[1768781374474,0.12925014,3248.0,3246.1,0.00461972]
[1768781374669,0.00351269,3248.4,3246.1,0.00461972]
[1768781374872,0.00351269,3248.4,3246.3,2.12649583]
[1768781375072,0.00351269,3248.4,3246.7,0.28283887]
[1768781375267,0.12925014,3249.4,3247.2,0.15402]
[1768781375466,0.12925014,3250.1,3247.1,0.12878887]
[1768781375669,0.12925014,3250.1,3247.6,0.12878887]
[1768781376079,0.00461972,3249.2,3247.6,0.12878887]
[1768781376271,0.0084038,3249.2,3248.5,0.00461972]
[1768781376473,0.0084038,3249.2,3248.5,0.00704249]
[1768781376672,3.085,3250.8,3248.5,0.00704249]
[1768781376994,0.12925014,3250.3,3248.5,0.00704249]
[1768781377673,0.13480957,3250.2,3248.5,0.00704249]
[1768781377880,0.13480957,3249.6,3248.5,0.00704249]
[1768781378074,0.13480957,3249.6,3246.9,0.28617854]
[1768781378075,0.28871957,3249.6,3247.0,0.15404]
[1768781378578,0.00461972,3249.7,3247.5,0.13213854]
[1768781378780,0.13942929,3249.7,3247.4,0.15402]
[1768781378977,0.13942929,3249.7,3247.4,0.15672695]
[1768781379185,0.00461972,3249.7,3248.2,0.00461972]
[1768781380386,0.13942929,3249.7,3248.2,0.00461972]
[1768781380775,0.13480957,3249.6,3248.2,0.00461972]
[1768781380976,0.13480957,3249.6,3247.4,0.00270695]
[1768781380977,0.28873957,3249.3,3247.4,0.00270695]
[1768781381181,0.28873957,3249.2,3247.4,0.00270695]
[1768781381374,4.17142177,3249.1,3247.4,0.00270695]
[1768781381574,0.13480957,3249.0,3247.4,0.00270695]
[1768781382274,0.13480957,3249.0,3247.9,0.00461972]
[1768781382480,3.21980957,3249.0,3247.9,0.00461972]
[1768781382785,0.13942929,3249.7,3247.9,0.00461972]
[1768781382983,0.00461972,3249.7,3247.9,0.00461972]
[1768781383187,0.00461972,3249.7,3247.9,0.15860972]
[1768781383689,0.00461972,3249.7,3247.9,0.29074826]
[1768781383880,0.00461972,3249.7,3247.9,0.13675826]
[1768781384187,0.00461972,3249.7,3247.9,0.00461972]
[1768781386292,0.13480957,3249.4,3247.9,0.00461972]
[1768781386787,0.13480957,3248.8,3247.4,0.00270695]
[1768781387089,0.15398,3248.3,3245.8,0.13213854]
[1768781387387,3.085,3248.1,3245.8,0.13213854]
[1768781387782,3.085,3248.4,3246.0,0.13213854]
[1768781387983,0.00461972,3247.3,3246.0,0.13568136]
[1768781388295,0.78643305,3248.5,3246.3,0.13675826]
[1768781388476,0.9337311,3248.4,3246.3,0.13675826]
[1768781388680,3.085,3248.7,3246.3,0.13675826]
[1768781388983,0.78643305,3248.5,3246.3,0.13675826]
[1768781389287,4.01878548,3248.4,3246.3,0.13675826]
[1768781389485,0.00461972,3247.7,3246.3,0.13675826]
[1768781389987,0.00461972,3247.7,3246.3,0.00461972]
[1768781392686,0.00461972,3247.7,3246.3,0.14710161]
[1768781393286,0.00461972,3247.7,3246.5,0.14248189]
[1768781393485,0.00312391,3248.5,3246.6,0.14248189]
[1768781393690,0.00312391,3248.5,3247.1,0.14248189]
[1768781393892,0.00312391,3248.5,3247.1,0.13748189]
[1768781394404,0.00312391,3248.5,3246.8,0.15405]
[1768781394692,0.00312391,3248.5,3246.9,0.15404]
[1768781395490,0.78643305,3249.8,3247.2,0.15403]
[1768781395692,0.93302197,3249.7,3247.1,2.464]
[1768781395993,1.19482695,3250.0,3248.2,0.00461972]
[1768781395994,0.94033305,3250.0,3248.2,0.00461972]
[1768781396191,1.71966791,3249.9,3248.2,0.00461972]
[1768781396391,0.93323486,3249.8,3248.2,0.00461972]
[1768781396993,0.00286388,3249.9,3248.2,0.00461972]
[1768781397190,0.00461972,3249.3,3248.2,0.00461972]
[1768781397391,0.00461972,3249.3,3248.2,0.14710161]
[1768781397889,0.00461972,3249.3,3248.2,0.00461972]
[1768781402297,0.00286388,3249.9,3248.2,0.30108161]
[1768781402500,0.00286388,3249.9,3248.3,0.14248189]
[1768781402692,0.00286388,3249.9,3248.3,0.00326553]
[1768781402995,0.00286388,3249.9,3248.3,0.14574742]
[1768781403297,0.00286388,3249.9,3248.3,0.13656942]
[1768781403497,0.00305567,3249.4,3248.3,0.13656942]
[1768781403699,0.00305567,3249.4,3248.2,0.00461972]
[1768781404289,0.00305567,3249.4,3248.2,0.00746367]
[1768781404486,0.15697567,3249.4,3248.2,0.00746367]
[1768781404691,0.15393,3249.3,3246.5,0.15406]
[1768781404891,0.15395,3248.8,3246.3,2.463]
[1768781405395,0.29515729,3248.8,3246.3,2.60548189]
[1768781405597,0.29515729,3248.8,3246.3,2.60840391]
[1768781405797,0.14120729,3248.8,3247.2,0.00461972]
[1768781405998,1.04092695,3249.3,3246.3,2.60840391]
[1768781405999,0.14120729,3248.5,3246.3,2.46592202]
[1768781406198,3.085,3248.3,3246.3,2.46592202]
[1768781406497,0.154,3247.8,3246.3,0.00292202]
[1768781406703,0.14120729,3247.9,3245.4,0.006163]
[1768781406902,0.14120729,3247.5,3245.4,0.006163]
[1768781407091,0.00461972,3247.0,3245.4,0.006163]
[1768781407299,0.14582701,3247.0,3245.4,0.006163]
[1768781407513,0.14120729,3246.8,3245.0,2.463]
[1768781407701,0.14411418,3246.8,3245.0,2.46589876]
[1768781408001,0.00290689,3246.8,3245.0,0.00289876]
[1768781408303,0.00290689,3246.8,3245.6,0.00461972]
[1768781408605,0.00290689,3246.8,3245.0,0.00289876]
[1768781408606,0.14411418,3246.8,3245.0,0.00289876]
[1768781409502,0.14411418,3246.8,3243.7,3.83556844]
[1768781409503,0.14120729,3246.6,3243.7,3.83556844]
[1768781409704,0.14120729,3246.6,3243.7,3.97805033]
[1768781409900,3.085,3246.4,3243.7,3.97805033]
[1768781410096,0.14120729,3246.3,3243.7,3.97805033]
[1768781410494,0.00461972,3245.3,3243.7,3.97805033]
[1768781410703,0.00461972,3245.3,3243.7,3.98028218]
[1768781410901,0.00461972,3245.3,3243.7,3.83780029]
[1768781411206,0.00461972,3245.3,3243.7,1.37480029]
[1768781412297,0.29994701,3245.3,3243.7,1.37480029]
[1768781412506,0.15412,3245.2,3243.7,1.37480029]
[1768781412705,0.15413,3245.1,3243.7,1.17829496]
[1768781413001,0.15413,3245.0,3243.7,1.17829496]
[1768781413503,0.15414,3244.8,3243.7,1.17829496]
[1768781414696,0.15415,3244.6,3243.7,1.17829496]
[1768781414996,0.15415,3244.6,3243.7,1.17711943]
[1768781415197,0.15416,3244.4,3242.9,0.14248189]
[1768781415597,0.15417,3244.3,3242.9,0.14248189]
[1768781415895,0.00461972,3245.3,3242.0,0.14248189]
[1768781416200,3.085,3245.1,3242.0,0.14597632]
[1768781416399,0.15419,3243.9,3242.0,0.14597632]
[1768781416604,0.15419,3243.8,3242.0,0.14597632]
[1768781417197,0.00461972,3244.0,3242.0,0.00349443]
[1768781417400,0.15425,3242.6,3241.4,0.14865189]
[1768781417597,0.15421,3243.4,3241.4,0.14865189]
[1768781417793,0.00461972,3242.3,3241.4,0.14865189]
[1768781418099,0.00461972,3242.3,3241.4,0.00617]
[1768781418504,0.15427,3242.1,3241.4,0.00226089]
[1768781418702,0.15427,3242.0,3240.1,0.14248189]
[1768781419109,0.15428,3241.9,3240.1,0.14248189]
[1768781419312,0.00710287,3242.3,3240.1,0.14248189]
[1768781419501,0.15429,3241.7,3240.1,0.14248189]
[1768781419807,0.15429,3241.7,3240.1,0.14494725]
[1768781420007,0.00710287,3242.3,3240.1,0.00246536]
[1768781420008,0.15431,3241.3,3240.1,0.00246536]
[1768781420308,0.15431,3241.2,3240.1,0.00246536]
[1768781420701,0.15431,3241.2,3239.5,0.14248189]
[1768781420902,3.09210287,3242.3,3239.5,0.14248189]
[1768781421207,3.09210287,3242.3,3239.4,2.91544111]
[1768781421208,0.00462699,3241.2,3239.4,2.91544111]
[1768781421409,0.00462699,3241.2,3239.5,0.14248189]
[1768781421708,0.00462699,3241.2,3239.5,0.14588944]
[1768781422801,0.00462699,3241.2,3239.6,1.3204655]
[1768781423002,0.00462699,3241.2,3239.5,0.00340755]
[1768781423003,0.00248315,3242.3,3241.1,0.14108075]
[1768781424016,0.00248315,3242.3,3240.4,0.14108075]
[1768781424310,0.00462699,3242.0,3240.9,1.17938475]
[1768781424503,0.00462699,3242.0,3241.0,0.14570774]
[1768781424704,0.00462699,3242.0,3241.0,0.00462699]
[1768781425304,0.15428,3241.9,3240.3,0.14108075]
[1768781425505,0.00462699,3242.0,3239.6,0.14108075]
[1768781425814,0.00462699,3242.0,3240.1,0.14108075]
[1768781426309,0.00462699,3242.0,3240.8,0.14108075]
[1768781426714,0.00462699,3242.0,3239.8,0.14108075]
[1768781426905,0.00462699,3242.0,3240.7,0.14108075]
[1768781427301,0.00462699,3242.0,3240.9,1.17938475]
[1768781427518,0.00462699,3242.0,3240.7,0.14108075]
[1768781427811,0.00462699,3242.0,3241.0,1.17938475]
[1768781428217,0.00462699,3242.0,3240.7,0.14108075]
[1768781428719,0.00462699,3242.0,3241.1,1.17938475]
[1768781429213,0.00462699,3242.0,3240.7,0.14108075]
[1768781429718,0.00248315,3242.3,3241.4,1.17938475]
[1768781429919,0.1542,3243.6,3241.5,1.3204655]
[1768781430214,0.15424,3242.9,3240.8,0.14108075]
[1768781430421,0.1542,3243.6,3240.8,0.14108075]
[1768781430716,0.15422,3243.1,3241.9,0.00462699]
[1768781430912,0.00462699,3242.5,3240.5,0.14108075]
[1768781431219,0.15426,3242.4,3240.5,0.14108075]
[1768781431407,0.15426,3242.4,3240.7,0.14108075]
[1768781431607,0.00462699,3242.5,3240.7,0.14108075]
[1768781431804,0.00462699,3242.5,3240.8,0.14108075]
[1768781432011,0.00462699,3242.5,3241.2,0.14108075]
[1768781432216,0.00462699,3242.5,3241.4,0.14108075]
[1768781432619,0.00462699,3242.5,3241.9,1.17938475]
[1768781432809,0.00338678,3243.1,3241.6,1.3204655]
[1768781433008,0.00338678,3243.1,3241.6,0.14108075]
[1768781433206,0.15423,3243.0,3240.9,0.14108075]
[1768781433610,0.00338678,3243.1,3240.9,0.14108075]
[1768781433810,0.00462699,3242.3,3241.7,0.00462699]
[1768781434117,0.00462699,3242.3,3240.8,0.00332682]
[1768781434420,0.15427,3242.2,3240.8,0.00332682]
[1768781434622,0.00462699,3242.3,3239.7,0.29546075]
[1768781434924,0.15428,3241.9,3239.8,0.14108075]
[1768781435222,0.15429,3241.7,3239.8,0.14108075]
[1768781435413,0.15429,3241.6,3239.8,0.14108075]
[1768781435612,0.15429,3241.6,3239.8,0.14348887]
[1768781436623,0.1543,3241.5,3239.8,0.00240812]
[1768781436918,0.15431,3241.4,3239.8,0.00240812]
[1768781437323,0.15431,3241.3,3239.8,0.00240812]
[1768781437530,0.13043292,3241.9,3239.8,0.00240812]
[1768781437714,0.15433,3241.0,3239.8,0.00240812]
[1768781437918,0.15434,3240.6,3238.1,0.13984295]
[1768781438225,0.00462699,3239.7,3238.1,0.13984295]
[1768781438523,0.00462699,3239.7,3238.6,1.17938475]
[1768781438725,0.00462699,3239.7,3238.3,0.13984295]
[1768781439027,0.00854104,3239.7,3238.3,0.00343476]
[1768781439221,0.00854104,3239.7,3238.9,0.13984295]
[1768781439422,0.15432,3241.1,3238.3,0.00343476]
[1768781439423,0.15432,3241.0,3239.3,1.17938475]
[1768781439626,0.15432,3241.0,3239.2,0.13984295]
[1768781439627,0.15434,3240.7,3238.5,0.13984295]
[1768781439823,0.15434,3240.7,3238.6,0.13984295]
[1768781440025,0.15434,3240.7,3238.9,0.13984295]
[1768781440421,0.15434,3240.7,3238.3,0.00343476]
[1768781440422,0.00462699,3240.1,3239.5,0.00462699]
[1768781440623,0.00355342,3240.7,3239.5,0.14446994]
[1768781440932,0.00355342,3240.7,3240.2,1.17938475]
[1768781441223,0.00355342,3240.7,3239.5,0.14446994]
[1768781441421,3.23928,3242.0,3239.9,0.13984295]
[1768781441625,3.085,3241.8,3239.9,0.13984295]
[1768781441830,3.085,3241.8,3240.7,1.17938475]
[1768781442126,0.15426,3242.3,3240.5,0.13984295]
[1768781442333,0.15427,3242.1,3240.5,0.13984295]
[1768781442522,0.15801101,3242.1,3240.5,0.14298516]
[1768781442715,0.1543,3241.6,3240.5,0.00314221]
[1768781442922,0.00462699,3241.6,3240.5,0.00314221]
[1768781443222,0.15433,3240.9,3240.5,2.21e-06]
[1768781443527,0.15434,3240.6,3239.1,0.13984295]
[1768781444026,0.00462699,3240.2,3239.5,0.00462699]
[1768781444529,3.085,3241.2,3239.9,1.17938475]
[1768781444730,3.085,3241.1,3239.5,0.14784066]
[1768781445332,1.02929214,3241.6,3240.1,0.13984295]
[1768781445333,3.085,3241.6,3240.1,0.13984295]
[1768781445826,3.085,3241.5,3240.1,0.13984295]
[1768781446023,3.085,3241.3,3239.5,0.00799771]
[1768781446217,3.085,3241.1,3239.5,0.00799771]
[1768781446417,0.15432,3241.0,3239.5,0.00799771]
[1768781447019,3.085,3240.8,3239.5,0.00799771]
[1768781447220,3.085,3240.6,3239.5,0.00799771]
[1768781447719,0.00462699,3240.4,3239.5,1.18738246]
[1768781447924,0.00462699,3240.4,3239.6,1.17938475]
[1768781448118,0.00462699,3240.4,3239.8,1.17938475]
[1768781448318,0.00462699,3240.4,3239.5,0.00799771]
[1768781448527,0.76778122,3241.6,3240.3,1.17938475]
[1768781448726,3.085,3241.7,3239.8,0.13984295]
[1768781449028,3.085,3241.7,3239.5,7.71e-06]
[1768781449029,0.15433,3240.8,3239.5,7.71e-06]
[1768781449223,0.93169762,3240.7,3239.5,7.71e-06]
[1768781449522,0.76778122,3241.4,3239.9,1.17938475]
[1768781449730,1.69915672,3241.3,3239.5,7.71e-06]
[1768781450037,4.0163755,3241.2,3240.1,0.00462699]
[1768781450328,0.00462699,3241.0,3239.5,7.71e-06]
[1768781450529,0.00462699,3241.0,3239.1,0.13984295]
[1768781450730,0.00462699,3241.0,3239.5,1.17938475]
[1768781450930,0.00462699,3241.0,3239.3,1.3192277]
[1768781451228,0.00462699,3241.0,3239.3,0.13984295]
[1768781451426,0.00462699,3241.0,3239.8,1.17938475]
[1768781451630,0.00462699,3241.0,3240.0,1.17938475]
[1768781451927,0.00462699,3241.0,3240.2,1.18401174]
[1768781452128,0.00462699,3241.0,3240.2,0.00462699]
[1768781453226,0.00462699,3241.0,3240.3,1.17938475]
[1768781453526,0.00462699,3241.0,3240.2,0.00462699]
[1768781453728,0.00462699,3241.0,3240.3,1.17938475]
[1768781453933,0.00462699,3241.0,3240.2,0.00462699]
[1768781454132,0.00462699,3241.0,3240.9,1.17938475]
[1768781454432,3.085,3241.4,3240.9,1.17938475]
[1768781454623,0.00374101,3242.1,3240.2,0.14608162]
[1768781454824,3.085,3241.9,3240.7,1.17938475]
[1768781455224,3.085,3241.9,3241.1,1.17938475]
[1768781455429,0.00462699,3241.6,3240.2,0.00462699]
[1768781455728,3.085,3241.9,3241.3,1.17938475]
[1768781456033,0.00374101,3242.1,3241.1,1.17938475]
[1768781456633,0.00374101,3242.1,3241.4,1.17938475]
[1768781456826,0.00462699,3241.9,3241.0,1.17938475]
[1768781457236,0.00462699,3241.9,3241.5,1.17938475]
[1768781457533,0.00374101,3242.1,3241.1,1.17938475]
[1768781457722,0.00374101,3242.1,3241.4,1.17938475]
[1768781457924,0.15423,3242.9,3241.0,1.46368688]
[1768781458225,0.13486992,3242.8,3241.0,2.64307163]
[1768781458433,0.1543,3241.4,3240.2,0.00462699]
[1768781458627,0.90265114,3241.8,3240.2,0.00462699]
[1768781458628,0.13486992,3241.7,3240.2,0.00462699]
[1768781458821,0.13486992,3241.5,3240.2,0.00462699]
[1768781459021,0.15432,3241.0,3240.2,0.00462699]
[1768781459218,0.15432,3241.0,3238.8,0.29343873]
[1768781459424,0.15432,3241.0,3240.1,1.17938475]
[1768781459622,0.15432,3241.0,3240.0,1.17938475]
[1768781459827,0.15432,3241.0,3239.9,1.17938475]
[1768781460230,0.15432,3241.0,3240.0,1.17938475]
[1768781460432,0.90265114,3241.4,3240.1,0.00462699]
[1768781460633,1.06701232,3241.3,3240.1,0.00462699]
[1768781460829,0.13486992,3241.1,3240.1,0.00462699]
[1768781461026,0.13486992,3240.5,3238.1,0.13644921]
[1768781461231,0.13486992,3239.5,3236.9,2.94020347]
[1768781461422,0.13486992,3238.5,3235.6,1.54129958]
[1768781461627,0.13486992,3238.2,3235.7,0.14145463]
[1768781461829,0.13486992,3238.2,3235.6,1.38671958]
[1768781461830,0.13486992,3237.9,3235.6,1.38671958]
[1768781462025,0.13486992,3237.5,3235.7,1.17938475]
[1768781462226,0.13486992,3237.4,3236.4,0.00463428]